fUST/lending_fUST_20240328
["ID","MTS","AMOUNT","RATE_DAILY","PERIOD"]
[320851362,1711632647501,-5000.0,0.00073972,120]
[320851363,1711632647512,-5000.0,0.00073972,120]
[320851364,1711632647521,-5000.0,0.00073972,120]
[320851365,1711632647530,-5000.0,0.00073972,120]
[320851366,1711632647539,-5000.0,0.00073972,120]
[320851367,1711632647548,-341.09139784,0.00073972,120]
[320851368,1711632647557,-5000.0,0.00073972,120]
[320851369,1711632647567,-1610.37416232,0.00073972,120]
[320851370,1711632647576,-500.0,0.00073972,120]
[320851371,1711632647585,-335.6363692,0.00073972,120]
[320851372,1711632647594,-1000.0,0.00073972,7]
[320851373,1711632647603,-1000.0,0.00073972,7]
[320851374,1711632647612,-1000.0,0.00073972,7]
[320851375,1711632647622,-1000.0,0.00073972,7]
[320851376,1711632647631,-692.06,0.00073972,120]
[320851377,1711632647645,-1000.0,0.00073972,7]
[320851378,1711632647654,-692.06,0.00073972,120]
[320851379,1711632647664,-500.0,0.00073972,120]
[320851380,1711632647673,-692.06,0.00073972,120]
[320851381,1711632647683,-1000.0,0.00073972,7]
[320851382,1711632647691,-692.06,0.00073972,120]
[320851383,1711632647700,-500.0,0.00073972,120]
[320851384,1711632647710,-500.0,0.00073972,120]
[320851385,1711632647720,-412.15588156,0.00073972,7]
[320851386,1711632647730,-692.06,0.00073972,120]
[320851387,1711632647738,-692.06,0.00073972,120]
[320851388,1711632647748,-500.0,0.00073972,120]
[320851389,1711632647757,-692.06,0.00073972,120]
[320851390,1711632647766,-500.0,0.00073972,120]
[320851391,1711632647776,-503.01599554,0.00073972,120]
[320851392,1711632647785,-500.0,0.00073972,120]
[320851393,1711632647795,-500.0,0.00073972,120]
[320851394,1711632647804,-692.06,0.00073972,120]
[320851395,1711632647814,-500.0,0.00073972,120]
[320851396,1711632647822,-692.06,0.00073972,120]
[320851397,1711632647831,-509.81,0.00073972,120]
[320851398,1711632647840,-692.06,0.00073972,120]
[320851399,1711632647850,-500.0,0.00073972,120]
[320851400,1711632647859,-500.0,0.00073972,120]
[320851401,1711632647868,-692.06,0.00073972,120]
[320851402,1711632647878,-692.06,0.00073972,120]
[320851403,1711632647888,-692.06,0.00073972,120]
[320851404,1711632647897,-692.06,0.00073972,120]
[320851405,1711632647906,-692.06,0.00073972,120]
[320851406,1711632647967,-692.06,0.00073972,120]
[320851407,1711632647982,-692.06,0.00073972,120]
[320851408,1711632647991,-692.06,0.00073972,120]
[320851409,1711632648000,-692.06,0.00073972,120]
[320851410,1711632648009,-1066.67,0.00073972,120]
[320851411,1711632648018,-1066.67,0.00073972,120]
[320851412,1711632648027,-692.06,0.00073972,120]
[320851413,1711632648036,-1066.67,0.00073972,120]
[320851414,1711632648045,-692.06,0.00073972,120]
[320851415,1711632648054,-692.06,0.00073972,120]
[320851416,1711632648063,-1066.67,0.00073972,120]
[320851417,1711632648072,-692.06,0.00073972,120]
[320851418,1711632648081,-692.15120727,0.00073972,120]
[320851419,1711632648089,-1066.67,0.00073972,120]
[320851420,1711632648098,-1066.67,0.00073972,120]
[320851421,1711632648107,-1066.67,0.00073972,120]
[320851422,1711632648117,-500.0,0.00073972,120]
[320851423,1711632648130,-1066.67,0.00073972,120]
[320851424,1711632648141,-1066.67,0.00073972,120]
[320851425,1711632648150,-1066.67,0.00073972,120]
[320851426,1711632648159,-1646.1,0.00073972,120]
[320851427,1711632648168,-1066.67,0.00073972,120]
[320851428,1711632648178,-1646.1,0.00073972,120]
[320851429,1711632648187,-1066.67,0.00073972,120]
[320851430,1711632648196,-1646.1,0.00073972,120]
[320851431,1711632648205,-1066.67,0.00073972,120]
[320851432,1711632648214,-1646.1,0.00073972,120]
[320851433,1711632648224,-1066.67,0.00073972,120]
[320851434,1711632648233,-1646.1,0.00073972,120]
[320851435,1711632648242,-1066.67,0.00073972,120]
[320851436,1711632648251,-500.0,0.00073972,120]
[320851437,1711632648262,-1646.1,0.00073972,120]
[320851438,1711632648272,-1066.67,0.00073972,120]
[320851439,1711632648281,-500.0,0.00073972,120]
[320851440,1711632648289,-1646.1,0.00073972,120]
[320851441,1711632648298,-1066.67,0.00073972,120]
[320851442,1711632648307,-500.0,0.00073972,120]
[320851443,1711632648316,-1646.1,0.00073972,120]
[320851444,1711632648326,-957.31,0.00073972,120]
[320851445,1711632648335,-1066.67,0.00073972,120]
[320851446,1711632648343,-1646.1,0.00073972,120]
[320851447,1711632648352,-500.0,0.00073972,120]
[320851448,1711632648362,-957.31,0.00073972,120]
[320851449,1711632648370,-1066.67,0.00073972,120]
[320851450,1711632648379,-957.31,0.00073972,120]
[320851451,1711632648389,-1066.67,0.00073972,120]
[320851452,1711632648398,-1646.1,0.00073972,120]
[320851453,1711632648407,-957.31,0.00073972,120]
[320851454,1711632648417,-1646.1,0.00073972,120]
[320851455,1711632648425,-1066.67,0.00073972,120]
[320851456,1711632648434,-957.31,0.00073972,120]
[320851457,1711632648443,-1066.67,0.00073972,120]
[320851458,1711632648452,-1646.1,0.00073972,120]
[320851459,1711632648461,-957.31,0.00073972,120]
[320851460,1711632648470,-1646.1,0.00073972,120]
[320851461,1711632648479,-1066.67,0.00073972,120]
[320851462,1711632648488,-1646.1,0.00073972,120]
[320851463,1711632648497,-957.31,0.00073972,120]
[320851464,1711632648506,-1066.71592824,0.00073972,120]
[320851465,1711632648515,-1646.1,0.00073972,120]
[320851466,1711632648524,-957.31,0.00073972,120]
[320851467,1711632648533,-500.0,0.00073972,120]
[320851468,1711632648542,-1646.1,0.00073972,120]
[320851469,1711632648551,-957.31,0.00073972,120]
[320851470,1711632648560,-418.41,0.00073972,120]
[320851471,1711632648570,-1646.1,0.00073972,120]
[320851472,1711632648578,-957.31,0.00073972,120]
[320851473,1711632648587,-1646.1,0.00073972,120]
[320851474,1711632648596,-957.31,0.00073972,120]
[320851475,1711632648605,-1646.1,0.00073972,120]
[320851476,1711632648614,-957.31,0.00073972,120]
[320851477,1711632648626,-1646.1,0.00073972,120]
[320851478,1711632648637,-957.31,0.00073972,120]
[320851479,1711632648646,-1646.1,0.00073972,120]
[320851480,1711632648655,-957.31,0.00073972,120]
[320851481,1711632648664,-1646.1,0.00073972,120]
[320851482,1711632648673,-1646.1,0.00073972,120]
[320851483,1711632648683,-957.31,0.00073972,120]
[320851484,1711632648691,-1646.20054805,0.00073972,120]
[320851485,1711632648701,-957.31,0.00073972,120]
[320851486,1711632648711,-957.31,0.00073972,120]
[320851487,1711632648722,-957.31,0.00073972,120]
[320851488,1711632648731,-957.31,0.00073972,120]
[320851489,1711632648740,-957.31,0.00073972,120]
[320851490,1711632648750,-957.31,0.00073972,120]
[320851491,1711632648760,-500.0,0.00073972,120]
[320851492,1711632648770,-500.0,0.00073972,120]
[320851493,1711632648779,-957.31,0.00073972,120]
[320851494,1711632648788,-500.0,0.00073972,120]
[320851495,1711632648797,-500.0,0.00073972,120]
[320851496,1711632648807,-210.51775831,0.00073972,120]
[320851497,1711632648816,-957.31,0.00073972,120]
[320851498,1711632648825,-500.0,0.00073972,120]
[320851499,1711632648835,-500.0,0.00073972,2]
[320851500,1711632648845,-500.0,0.00073972,120]
[320851501,1711632648855,-957.48,0.00073972,120]
[320851502,1711632648864,-500.0,0.00073972,120]
[320851503,1711632648874,-500.0,0.00073972,2]
[320851504,1711632648883,-500.0,0.00073972,120]
[320851505,1711632648894,-176.65024773,0.00073972,120]
[320851506,1711632648903,-500.0,0.00073972,2]
[320851507,1711632648912,-500.0,0.00073972,120]
[320851508,1711632648922,-500.0,0.00073972,2]
[320851509,1711632648931,-500.0,0.00073972,120]
[320851510,1711632648940,-500.0,0.00073972,2]
[320851511,1711632648949,-500.0,0.00073972,120]
[320851512,1711632648958,-500.0,0.00073972,2]
[320851513,1711632648968,-500.0,0.00073972,120]
[320851514,1711632648977,-500.0,0.00073972,120]
[320851515,1711632648988,-500.0,0.00073972,120]
[320851516,1711632648998,-500.0,0.00073972,2]
[320851517,1711632649007,-500.0,0.00073972,120]
[320851518,1711632649017,-306.02629774,0.00073972,120]
[320851519,1711632649026,-500.0,0.00073972,120]
[320851520,1711632649036,-500.0,0.00073972,2]
[320851521,1711632649045,-500.0,0.00073972,120]
[320851522,1711632649054,-500.0,0.00073972,2]
[320851523,1711632649064,-527.88367,0.00073972,120]
[320851524,1711632649073,-500.0,0.00073972,2]
[320851525,1711632649083,-500.0,0.00073972,120]
[320851526,1711632649091,-500.0,0.00073972,120]
[320851527,1711632649154,-516.33,0.00073972,120]
[320851528,1711632649164,-500.0,0.00073972,2]
[320851529,1711632649174,-688.8,0.00073972,120]
[320851530,1711632649183,-500.0,0.00073972,2]
[320851531,1711632649193,-688.8,0.00073972,120]
[320851532,1711632649202,-500.0,0.00073972,2]
[320851533,1711632649212,-662.59,0.00073972,120]
[320851534,1711632649221,-688.8,0.00073972,120]
[320851535,1711632649230,-500.0,0.00073972,120]
[320851536,1711632649240,-500.0,0.00073972,2]
[320851537,1711632649249,-662.59,0.00073972,120]
[320851538,1711632649259,-688.8,0.00073972,120]
[320851539,1711632649269,-504.62353739,0.00073972,2]
[320851540,1711632649278,-500.0,0.00073972,120]
[320851541,1711632649287,-662.59,0.00073972,120]
[320851542,1711632649296,-688.8,0.00073972,120]
[320851543,1711632649305,-500.0,0.00073972,120]
[320851544,1711632649314,-662.59,0.00073972,120]
[320851545,1711632649324,-688.8,0.00073972,120]
[320851546,1711632649334,-500.0,0.00073972,120]
[320851547,1711632649343,-662.59,0.00073972,120]
[320851548,1711632649355,-688.8,0.00073972,120]
[320851549,1711632649364,-2311.4613741,0.00073972,120]
[320851550,1711632649719,-353.5200001,0.00072284,120]
[320851551,1711632649733,-146.4799999,0.00072284,120]
[320851552,1711632649744,-500.0,0.00072284,120]
[320851553,1711632649753,-342.35540764,0.00072284,120]
[320851554,1711632649763,-3263.1286259,0.00073972,120]
[320851555,1711632649773,-500.0,0.00073972,120]
[320851556,1711632649782,-500.0,0.00073972,120]
[320851557,1711632649792,-500.0,0.00073972,120]
[320851558,1711632649802,-688.8,0.00073972,120]
[320851559,1711632649811,-662.59,0.00073972,120]
[320851560,1711632649821,-3313.95879581,0.00073972,120]
[320851561,1711632665277,299.48803373,0.00019867,2]
[320851624,1711633832024,-1206.442452,0.00041966,4]
[320851625,1711633832034,-283.88065759,0.00041966,4]
[320851627,1711633832044,-949.33748692,0.00041967,4]
[320851628,1711633832053,-2474.38000184,0.00041968,4]
[320851629,1711633832062,-166.6666682,0.00068076,2]
[320851630,1711633832072,-6629.0398784,0.00068776,2]
[320851631,1711633832082,-1501.40091953,0.0007,2]
[320851632,1711633832091,-920.79514438,0.00070272,7]
[320851633,1711633832101,-286.899855,0.00070811,120]
[320851634,1711633832110,-2926.20996857,0.000711,120]
[320851635,1711633832120,-265.7141173,0.00071685,2]
[320851637,1711633832129,-209.51469597,0.00071872,4]
[320851638,1711633832139,-1000.0,0.00071987,2]
[320851639,1711633832148,-156.03936343,0.00072283,7]
[320851640,1711633832157,-315.29455431,0.00072283,7]
[320851641,1711633832166,-446.61408373,0.00072283,7]
[320851642,1711633832175,-15098.79222716,0.000728,120]
[320851643,1711633832185,-1677.63,0.00072932,120]
[320851644,1711633832194,-1000.0,0.00072987,2]
[320851645,1711633832203,-1000.0,0.00072987,3]
[320851646,1711633832213,-1000.0,0.00072987,4]
[320851647,1711633832222,-277.25429277,0.00073,61]
[320851648,1711633832233,-43161.79367344,0.00073,120]
[320851649,1711633832247,-6458.92874712,0.00073,120]
[320851650,1711633832276,-1294.76841677,0.00073,120]
[320851651,1711633832287,-2125.21,0.00073,120]
[320851698,1711633837904,-458.94626671,0.00073,120]
[320851699,1711633837915,-4143.25345275,0.00073,120]
[320851700,1711633837983,-32357.09944321,0.00073,120]
[320851701,1711633837993,-1000.0,0.00073,120]
[320851702,1711633838001,-158.64317732,0.00073232,120]
[320851703,1711633838011,-2183.43715456,0.00073872,2]
[320851704,1711633838022,-4961.00458409,0.000739,30]
[320851705,1711633838031,-347.43641547,0.00073969,7]
[320851706,1711633838041,-287.69898369,0.0007397,7]
[320851707,1711633838050,-1955.0304632,0.0007397,7]
[320851708,1711633838059,-373.72424638,0.0007397,7]
[320851709,1711633838068,-1892.59435284,0.0007397,7]
[320851710,1711633838077,-289.81431496,0.0007397,2]
[320851711,1711633838086,-155.13044642,0.0007397,7]
[320851712,1711633838095,-155.01240099,0.0007397,7]
[320851714,1711633838104,-196.11191918,0.0007397,2]
[320851715,1711633838113,-186.10441294,0.0007397,7]
[320851717,1711633838122,-1259.52525825,0.0007397,7]
[320851718,1711633838131,-170.06336899,0.0007397,7]
[320851720,1711633838140,-287.73427922,0.00073971,7]
[320851722,1711633838148,-807.30445512,0.00073971,7]
[320851724,1711633838158,-245.22964307,0.00073971,7]
[320851725,1711633838167,-328.30057519,0.00073971,7]
[320851727,1711633838177,-1000.0,0.00073971,2]
[320851729,1711633838187,-441.48,0.00073971,5]
[320851730,1711633838196,-749.42750826,0.00073971,120]
[320851731,1711633838206,-1580.6,0.00073972,120]
[320851732,1711633838215,-1580.6,0.00073972,120]
[320851733,1711633838223,-1580.6,0.00073972,120]
[320851734,1711633838233,-1580.6,0.00073972,120]
[320851735,1711633838244,-1580.6,0.00073972,120]
[320851736,1711633838254,-1580.6,0.00073972,120]
[320851737,1711633838262,-1580.6,0.00073972,120]
[320851738,1711633838272,-1580.6,0.00073972,120]
[320851739,1711633838281,-1580.6,0.00073972,120]
[320851740,1711633838291,-1580.6,0.00073972,120]
[320851741,1711633838301,-1580.6,0.00073972,120]
[320851742,1711633838310,-1580.6,0.00073972,120]
[320851743,1711633838320,-1580.6,0.00073972,120]
[320851744,1711633838330,-1580.6,0.00073972,120]
[320851745,1711633838339,-1580.6,0.00073972,120]
[320851746,1711633838348,-1580.6,0.00073972,120]
[320851747,1711633838357,-1580.6,0.00073972,120]
[320851748,1711633838366,-1580.6,0.00073972,120]
[320851749,1711633838375,-1580.6,0.00073972,120]
[320851750,1711633838384,-1580.6,0.00073972,120]
[320851751,1711633838394,-1580.6,0.00073972,120]
[320851752,1711633838403,-1580.6,0.00073972,120]
[320851753,1711633838412,-1580.6,0.00073972,120]
[320851754,1711633838423,-1580.65613459,0.00073972,120]
[320851755,1711633838433,-1319.09,0.00073972,120]
[320851756,1711633838443,-1319.09,0.00073972,120]
[320851757,1711633838454,-1319.09,0.00073972,120]
[320851758,1711633838463,-1319.09,0.00073972,120]
[320851759,1711633838473,-1319.09,0.00073972,120]
[320851760,1711633838483,-1319.09,0.00073972,120]
[320851761,1711633838491,-1319.09,0.00073972,120]
[320851764,1711633838587,-1319.09,0.00073972,120]
[320851765,1711633838600,-1319.09,0.00073972,120]
[320851766,1711633838610,-1319.09,0.00073972,120]
[320851767,1711633838619,-1319.09,0.00073972,120]
[320851768,1711633838628,-1319.09,0.00073972,120]
[320851769,1711633838638,-1319.09,0.00073972,120]
[320851770,1711633838647,-1319.09,0.00073972,120]
[320851771,1711633838656,-1319.09,0.00073972,120]
[320851772,1711633838666,-1319.09,0.00073972,120]
[320851773,1711633838675,-1319.09,0.00073972,120]
[320851774,1711633838684,-1319.09,0.00073972,120]
[320851775,1711633838693,-1319.09,0.00073972,120]
[320851776,1711633838702,-1319.09,0.00073972,120]
[320851777,1711633838712,-1319.09,0.00073972,120]
[320851778,1711633838721,-1319.09,0.00073972,120]
[320851779,1711633838730,-1319.09,0.00073972,120]
[320851780,1711633838739,-1319.30918448,0.00073972,120]
[320851781,1711633838748,-501.61455761,0.00073972,120]
[320851782,1711633838758,-500.71360615,0.00073972,120]
[320851783,1711633838767,-493.6439027,0.00073972,120]
[320851784,1711633838779,-502.95435347,0.00073972,120]
[320851785,1711633838787,-500.0,0.00073972,120]
[320851786,1711633838796,-622.99761587,0.00073972,120]
[320851787,1711633838805,-500.0,0.00073972,120]
[320851788,1711633838815,-500.0,0.00073972,120]
[320851789,1711633838824,-244.77619584,0.00073972,120]
[320851790,1711633838833,-500.0,0.00073972,120]
[320851791,1711633838842,-500.0,0.00073972,120]
[320851792,1711633838851,-398.7,0.00073972,120]
[320851793,1711633838860,-500.0,0.00073972,120]
[320851794,1711633838869,-500.0,0.00073972,120]
[320851795,1711633838878,-312.75519652,0.00073972,120]
[320851796,1711633838887,-311.472,0.00073972,120]
[320851797,1711633838897,-311.472,0.00073972,120]
[320851798,1711633838906,-500.0,0.00073972,120]
[320851799,1711633838915,-311.472,0.00073972,120]
[320851800,1711633838924,-311.472,0.00073972,120]
[320851801,1711633838933,-311.472,0.00073972,120]
[320851802,1711633838942,-311.472,0.00073972,120]
[320851803,1711633838951,-311.472,0.00073972,120]
[320851804,1711633838961,-311.472,0.00073972,120]
[320851805,1711633838970,-311.472,0.00073972,120]
[320851806,1711633838981,-311.472,0.00073972,120]
[320851807,1711633838990,-311.472,0.00073972,120]
[320851808,1711633838999,-311.472,0.00073972,120]
[320851809,1711633839008,-311.472,0.00073972,120]
[320851810,1711633839017,-311.472,0.00073972,120]
[320851811,1711633839028,-311.472,0.00073972,120]
[320851812,1711633839037,-311.472,0.00073972,120]
[320851813,1711633839045,-311.472,0.00073972,120]
[320851814,1711633839056,-311.472,0.00073972,120]
[320851815,1711633839066,-311.472,0.00073972,120]
[320851816,1711633839075,-311.472,0.00073972,120]
[320851817,1711633839085,-500.85115554,0.00073972,120]
[320851818,1711633839094,-500.0,0.00073972,120]
[320851819,1711633839103,-500.0,0.00073972,120]
[320851820,1711633839112,-500.0,0.00073972,120]
[320851821,1711633839122,-500.0,0.00073972,120]
[320851822,1711633839131,-500.0,0.00073972,120]
[320851823,1711633839140,-500.0,0.00073972,120]
[320851824,1711633839150,-202.95234867,0.00073972,120]
[320851825,1711633839159,-500.75401144,0.00073972,120]
[320851826,1711633839168,-500.0,0.00073972,120]
[320851827,1711633839177,-500.0,0.00073972,120]
[320851828,1711633839187,-348.39,0.00073972,120]
[320851829,1711633839197,-500.0,0.00073972,120]
[320851830,1711633839206,-500.0,0.00073972,120]
[320851831,1711633839216,-500.0,0.00073972,120]
[320851832,1711633839226,-162.9596158,0.00073972,120]
[320851833,1711633839235,-500.0,0.00073972,120]
[320851834,1711633839245,-500.0,0.00073972,120]
[320851835,1711633839254,-500.49615945,0.00073972,120]
[320851836,1711633839263,-500.0,0.00073972,120]
[320851837,1711633839273,-579.41,0.00073972,120]
[320851838,1711633839282,-500.0,0.00073972,120]
[320851839,1711633839291,-500.0,0.00073972,120]
[320851840,1711633839300,-501.64134912,0.00073972,120]
[320851841,1711633839309,-500.0,0.00073972,120]
[320851842,1711633839318,-379.87571034,0.00073972,120]
[320851844,1711633839327,-500.0,0.00073972,120]
[320851845,1711633839336,-500.0,0.00073972,120]
[320851846,1711633839345,-500.0,0.00073972,120]
[320851847,1711633839354,-500.0,0.00073972,120]
[320851848,1711633839363,-500.0,0.00073972,120]
[320851849,1711633839372,-500.0,0.00073972,120]
[320851850,1711633839382,-500.0,0.00073972,120]
[320851852,1711633839391,-500.0,0.00073972,120]
[320851853,1711633839401,-500.0,0.00073972,120]
[320851854,1711633839411,-500.0,0.00073972,120]
[320851855,1711633839420,-535.37,0.00073972,120]
[320851856,1711633839429,-500.0,0.00073972,120]
[320851857,1711633839439,-500.0,0.00073972,120]
[320851858,1711633839448,-500.0,0.00073972,120]
[320851859,1711633839456,-500.0,0.00073972,120]
[320851860,1711633839465,-336.61,0.00073972,120]
[320851861,1711633839474,-500.0,0.00073972,120]
[320851862,1711633839483,-500.0,0.00073972,120]
[320851863,1711633839492,-500.64107065,0.00073972,120]
[320851864,1711633839501,-500.0,0.00073972,120]
[320851865,1711633839510,-500.0,0.00073972,120]
[320851866,1711633839520,-306.84046206,0.00073972,120]
[320851867,1711633839531,-572.02195474,0.00073972,120]
[320851868,1711633839540,-500.0,0.00073972,120]
[320851869,1711633839549,-500.41879285,0.00073972,120]
[320851870,1711633839558,-500.0,0.00073972,120]
[320851871,1711633839567,-500.0,0.00073972,120]
[320851872,1711633839576,-368.67,0.00073972,120]
[320851873,1711633839585,-500.0,0.00073972,120]
[320851874,1711633839594,-500.0,0.00073972,120]
[320851875,1711633839603,-500.44918167,0.00073972,120]
[320851876,1711633839613,-500.0,0.00073972,120]
[320851877,1711633839623,-176.1057059,0.00073972,120]
[320851878,1711633839632,-500.19744212,0.00073972,120]
[320851879,1711633839643,-500.0,0.00073972,120]
[320851880,1711633839652,-542.21,0.00073972,120]
[320851881,1711633839661,-500.0,0.00073972,120]
[320851882,1711633839670,-500.0,0.00073972,120]
[320851883,1711633839679,-500.0,0.00073972,120]
[320851884,1711633839688,-500.22663444,0.00073972,120]
[320851885,1711633839697,-500.0,0.00073972,120]
[320851886,1711633839706,-500.0,0.00073972,120]
[320851887,1711633839715,-500.0,0.00073972,7]
[320851888,1711633839725,-500.0,0.00073972,120]
[320851889,1711633839734,-500.0,0.00073972,120]
[320851890,1711633839744,-400.75438426,0.00073972,120]
[320851891,1711633839753,-618.58412771,0.00073972,120]
[320851892,1711633839762,-500.0,0.00073972,120]
[320851893,1711633839772,-559.98,0.00073972,120]
[320851894,1711633839782,-500.35291032,0.00073972,120]
[320851895,1711633839791,-500.15,0.00073972,120]
[320851896,1711633839800,-500.0,0.00073972,120]
[320851897,1711633839809,-500.0,0.00073972,120]
[320851898,1711633839818,-500.0,0.00073972,120]
[320851899,1711633839827,-500.0,0.00073972,120]
[320851900,1711633839837,-500.0,0.00073972,120]
[320851901,1711633839846,-500.0,0.00073972,120]
[320851902,1711633839855,-315.59,0.00073972,120]
[320851903,1711633839864,-500.0,0.00073972,120]
[320851904,1711633839874,-500.75956571,0.00073972,120]
[320851905,1711633839884,-500.0,0.00073972,120]
[320851906,1711633839893,-500.0,0.00073972,120]
[320851907,1711633839903,-275.06,0.00073972,120]
[320851908,1711633839912,-500.0,0.00073972,120]
[320851909,1711633839922,-500.0,0.00073972,120]
[320851910,1711633839931,-495.79,0.00073972,120]
[320851911,1711633839942,-500.0,0.00073972,120]
[320851912,1711633839952,-500.0,0.00073972,120]
[320851913,1711633839962,-578.29,0.00073972,120]
[320851914,1711633839972,-570.73,0.00073972,120]
[320851915,1711633839983,-500.0,0.00073972,120]
[320851916,1711633839993,-500.36681255,0.00073972,120]
[320851917,1711633840002,-500.33161124,0.00073972,120]
[320851918,1711633840011,-501.25116078,0.00073972,120]
[320851919,1711633840025,-501.33495662,0.00073972,120]
[320851920,1711633840036,-500.04770741,0.00073972,120]
[320851921,1711633840045,-500.453679,0.00073972,120]
[320851922,1711633840058,-501.24782495,0.00073972,120]
[320851923,1711633840068,-500.0,0.00073972,120]
[320851924,1711633840078,-202.84,0.00073972,120]
[320851925,1711633840087,-500.6468265,0.00073972,120]
[320851926,1711633840097,-500.0,0.00073972,120]
[320851927,1711633840106,-500.24660731,0.00073972,120]
[320851928,1711633840116,-500.0,0.00073972,120]
[320851929,1711633840125,-500.0,0.00073972,120]
[320851930,1711633840134,-503.49744404,0.00073972,120]
[320851931,1711633840143,-194.85968641,0.00073972,120]
[320851932,1711633840153,-501.68952314,0.00073972,120]
[320851934,1711633840162,-500.37313914,0.00073972,120]
[320851935,1711633840172,-500.83790747,0.00073972,120]
[320851936,1711633840182,-500.82046413,0.00073972,120]
[320851937,1711633840191,-500.37858757,0.00073972,120]
[320851938,1711633840201,-500.0,0.00073972,30]
[320851939,1711633840211,-500.0,0.00073972,120]
[320851940,1711633840220,-189.9453462,0.00073972,120]
[320851941,1711633840229,-500.28833029,0.00073972,120]
[320851942,1711633840238,-500.0,0.00073972,120]
[320851943,1711633840247,-554.89640552,0.00073972,120]
[320851944,1711633840256,-501.18706969,0.00073972,120]
[320851945,1711633840266,-500.85014093,0.00073972,120]
[320851946,1711633840276,-501.85479014,0.00073972,120]
[320851947,1711633840285,-500.91529163,0.00073972,120]
[320851948,1711633840294,-500.81718228,0.00073972,120]
[320851949,1711633840303,-501.8161998,0.00073972,120]
[320851950,1711633840313,-210.56576484,0.00073972,120]
[320851952,1711633840322,-500.0,0.00073972,120]
[320851953,1711633840331,-500.0,0.00073972,120]
[320851955,1711633840340,-500.70957552,0.00073972,120]
[320851956,1711633840349,-500.0,0.00073972,120]
[320851957,1711633840359,-370.63622387,0.00073972,120]
[320851958,1711633840369,-319.50237505,0.00073972,120]
[320851959,1711633840378,-501.57880112,0.00073972,120]
[320851961,1711633840388,-477.95348952,0.00073972,120]
[320851963,1711633840397,-507.76398949,0.00073972,120]
[320851965,1711633840406,-500.0,0.00073972,120]
[320851967,1711633840415,-500.0,0.00073972,120]
[320851969,1711633840425,-514.91,0.00073972,120]
[320851971,1711633840434,-500.79800971,0.00073972,120]
[320851973,1711633840444,-500.0,0.00073972,120]
[320851975,1711633840453,-533.88,0.00073972,120]
[320851977,1711633840463,-500.0,0.00073972,120]
[320851979,1711633840471,-575.05121024,0.00073972,120]
[320851981,1711633840480,-500.0,0.00073972,120]
[320851990,1711633840552,-500.0,0.00073972,120]
[320851992,1711633840571,-221.21,0.00073972,120]
[320851994,1711633840580,-500.30889039,0.00073972,120]
[320851996,1711633840590,-500.0,0.00073972,120]
[320851998,1711633840599,-500.0,0.00073972,120]
[320852000,1711633840608,-2129.01,0.00073972,120]
[320852002,1711633840617,-2129.01,0.00073972,120]
[320852003,1711633840626,-2129.01,0.00073972,120]
[320852004,1711633840635,-2129.01,0.00073972,120]
[320852005,1711633840644,-2129.01,0.00073972,120]
[320852006,1711633840654,-2129.01,0.00073972,120]
[320852007,1711633840663,-501.86581278,0.00073972,120]
[320852008,1711633840672,-2129.01,0.00073972,120]
[320852009,1711633840681,-2129.01,0.00073972,120]
[320852010,1711633840690,-2129.01,0.00073972,120]